fUSD/lending_fUSD_20240701
["ID","MTS","AMOUNT","RATE_DAILY","PERIOD"]
[330847339,1719863447287,-151.0,0.00021892,2]
[330847340,1719863447297,-151.0,0.00021892,2]
[330847341,1719863447307,-151.0,0.00021892,2]
[330847342,1719863447317,-151.0,0.00021892,2]
[330847343,1719863447327,-151.0,0.00021892,2]
[330847344,1719863447337,-151.0,0.00021892,2]
[330847345,1719863447347,-407.62032,0.00021892,2]
[330847346,1719863447357,-407.62032,0.00021892,2]
[330847347,1719863447368,-826.212408,0.00021892,2]
[330847348,1719863447379,-826.212408,0.00021892,2]
[330847349,1719863447390,-415.29111,0.00021892,2]
[330847350,1719863447400,-415.29111,0.00021892,2]
[330847351,1719863447410,-151.0,0.00021892,2]
[330847352,1719863447420,-669.812282,0.00021892,2]
[330847353,1719863447430,-151.0,0.00021892,2]
[330847354,1719863447439,-151.0,0.00021892,2]
[330847355,1719863447450,-669.812282,0.00021892,2]
[330847356,1719863447459,-182.554306,0.00021892,2]
[330847357,1719863447468,-151.0,0.00021892,2]
[330847358,1719863447478,-175.653556,0.00021892,2]
[330847359,1719863447488,-175.653556,0.00021892,2]
[330847360,1719863447497,-1180.839963,0.00021892,2]
[330847361,1719863447507,-1180.839963,0.00021892,2]
[330847362,1719863447516,-151.0,0.00021892,2]
[330847363,1719863447525,-157.065682,0.00021892,2]
[330847364,1719863447539,-151.0,0.00021892,2]
[330847365,1719863447548,-151.0,0.00021892,2]
[330847366,1719863447558,-151.0,0.00021892,2]
[330847367,1719863447568,-667.589417,0.00021892,2]
[330847368,1719863447578,-667.589417,0.00021892,2]
[330847369,1719863447587,-151.0,0.00021892,2]
[330847370,1719863447597,-151.0,0.00021892,2]
[330847371,1719863447607,-151.0,0.00021892,2]
[330847372,1719863447618,-622.501496,0.00021892,2]
[330847373,1719863447628,-622.501496,0.00021892,2]
[330847374,1719863447637,-6262.02309089,0.00021892,2]
[330847375,1719863447945,-562.11463011,0.00021892,2]
[330847376,1719863447954,-677.732097,0.00021892,2]
[330847377,1719863447963,-6824.137721,0.00021892,2]
[330847378,1719863447973,-677.732097,0.00021892,2]
[330847379,1719863447982,-245.098639,0.00021892,2]
[330847380,1719863447991,-151.0,0.00021892,2]
[330847381,1719863448001,-151.0,0.00021892,2]
[330847382,1719863448010,-173.65,0.00021892,2]
[330847383,1719863448020,-151.0,0.00021892,2]
[330847384,1719863448029,-173.65,0.00021892,2]
[330847385,1719863448038,-411.926351,0.00021892,2]
[330847386,1719863448048,-411.926351,0.00021892,2]
[330847387,1719863448058,-772.635236,0.00021892,2]
[330847388,1719863448068,-772.635236,0.00021892,2]
[330847389,1719863448077,-1343.982711,0.00021892,2]
[330847390,1719863448087,-151.0,0.00021892,2]
[330847391,1719863448097,-1343.982711,0.00021892,2]
[330847392,1719863448107,-151.0,0.00021892,2]
[330847393,1719863448117,-151.0,0.00021892,2]
[330847394,1719863448127,-151.0,0.00021892,2]
[330847395,1719863448138,-151.0,0.00021892,2]
[330847396,1719863448148,-150.0,0.00021894,2]
[330847397,1719863448158,-500.0,0.00021894,2]
[330847398,1719863448167,-621.0,0.00021897,30]
[330847399,1719863448177,-2714.0,0.00021897,30]
[330847400,1719863448187,-150.0,0.00021897,2]
[330847401,1719863448197,-150.0,0.00021899,7]
[330847402,1719863448207,-150.0,0.00021899,7]
[330847403,1719863448216,-982.0,0.000219,4]
[330847404,1719863448227,-1071.0,0.000219,9]
[330847405,1719863448236,-490.0,0.000219,4]
[330847406,1719863448246,-1004.9,0.000219,2]
[330847407,1719863448255,-750.0,0.000219,2]
[330847408,1719863448265,-750.0,0.000219,2]
[330847409,1719863448275,-225.0,0.000219,2]
[330847410,1719863448284,-225.0587832,0.000219,2]
[330847411,1719863448293,-511.0,0.000219,2]
[330847412,1719863448303,-356.0,0.000219,2]
[330847413,1719863448312,-411.926351,0.000219,2]
[330847414,1719863448383,-9651.56552292,0.000219,2]
[330847415,1719863448393,-411.926351,0.000219,2]
[330847416,1719863448402,-772.635236,0.000219,2]
[330847417,1719863448411,-3338.79291377,0.000219,2]
[330847418,1719863448421,-772.635236,0.000219,2]
[330847419,1719863448431,-1343.982711,0.000219,2]
[330847420,1719863448440,-151.0,0.000219,2]
[330847421,1719863448449,-1343.982711,0.000219,2]
[330847422,1719863448458,-151.0,0.000219,2]
[330847423,1719863448467,-151.0,0.000219,2]
[330847424,1719863448478,-151.0,0.000219,2]
[330847425,1719863448487,-1234.57216479,0.000219,2]
[330847426,1719863448497,-500.0,0.00021902,2]
[330847427,1719863448506,-500.0,0.00021903,2]
[330847428,1719863448515,-300.0,0.00021906,2]
[330847429,1719863448524,-621.0,0.00021907,30]
[330847430,1719863448535,-150.5,0.00021907,30]
[330847431,1719863448547,-2714.0,0.00021907,30]
[330847432,1719863448557,-151.0,0.00021907,2]
[330847433,1719863448567,-151.0,0.00021907,2]
[330847434,1719863448576,-151.0,0.00021907,2]
[330847435,1719863448587,-151.0,0.00021907,2]
[330847436,1719863448596,-151.0,0.00021907,2]
[330847437,1719863448606,-151.0,0.00021907,2]
[330847438,1719863448616,-151.0,0.00021907,2]
[330847439,1719863448626,-211.0,0.0002191,2]
[330847440,1719863448636,-500.0,0.00021912,2]
[330847441,1719863448645,-254944.29073925,0.00021916,7]
[330847442,1719863448671,-378.75665363,0.00012302,2]
[330847443,1719863448681,-6704.25187615,0.00021916,7]
[330847444,1719863448700,-1291239.57961941,0.00021916,7]
[330847445,1719863448859,-155.0,0.00012302,2]
[330847446,1719863448870,-151.0,0.000219,2]
[330847447,1719863448880,-41665.02652498,0.00021916,7]
[330847448,1719863448893,-664.0,0.00021916,7]
[330847449,1719863448905,-11129.60899707,0.00021916,7]
[330847450,1719863448916,-3903.16775445,0.00021916,7]
[330847451,1719863448928,-2502.2473454,0.00021916,7]
[330847452,1719863448943,-1201.9,0.00021916,7]
[330847453,1719863448958,-3207.07153161,0.00021916,7]
[330847454,1719863448970,-323.23221109,0.00021916,7]
[330847455,1719863449005,-625.64470959,0.0001935,2]
[330847456,1719863449015,-266.03038219,0.00021916,7]
[330847457,1719863449027,-871.1509125,0.00021916,7]
[330847458,1719863449058,-64188.10666615,0.00021916,7]
[330847459,1719863449070,-10066.03213401,0.00021916,7]
[330847460,1719863449181,-306.03178864,0.00021916,7]
[330847461,1719863449194,-647.526547,0.00021916,7]
[330847462,1719863449206,-739.70005,0.00021916,7]
[330847463,1719863449218,-1111.183666,0.00021916,7]
[330847464,1719863449242,-1917.96611781,0.00014042,2]
[330847465,1719863449252,-2249.71064414,0.00021916,7]
[330847466,1719863449495,-155.0,0.00012302,2]
[330847467,1719863449505,-271.38559797,0.00021916,7]
[330847468,1719863449791,-732.25253567,0.00014927,2]
[330847469,1719863449804,-1185.71358206,0.00014927,2]
[330847470,1719863449815,-1000.0,0.000219,2]
[330847471,1719863449824,-2198.32141794,0.00021916,7]
[330847472,1719863449836,-5958.30201139,0.00021916,7]
[330847473,1719863449848,-4472.4747393,0.00021916,7]
[330847474,1719863449860,-1580.97330518,0.00021916,7]
[330847475,1719863449876,-420.62036438,0.00021916,7]
[330847476,1719863449888,-2615.90852854,0.00021916,7]
[330847477,1719863449900,-127606.66495219,0.00021916,7]
[330847478,1719863449948,-4748.5911724,0.00021916,7]
[330847479,1719863449960,-1625.50090201,0.00021916,7]
[330847480,1719863449975,-354.37716682,0.00021916,7]
[330847481,1719863449986,-613.31437126,0.00021916,7]
[330847482,1719863450011,-2527.858,0.00021916,7]
[330847483,1719863450023,-797.08748049,0.00021916,7]
[330847484,1719863450035,-1028.02110236,0.00021916,7]
[330847485,1719863450046,-5608.3631456,0.00021916,7]
[330847486,1719863450058,-21138.77639407,0.00021916,7]
[330847487,1719863450070,-35448.65072525,0.00021916,7]
[330847488,1719863450081,-935.08495585,0.00021916,7]
[330847489,1719863450094,-414.36,0.00021916,7]
[330847498,1719864569141,-157.51550643,0.00014419,2]
[330847499,1719864569160,-500.0,0.00014519,2]
[330847500,1719864569180,-500.0,0.00014519,2]
[330847501,1719864569199,-500.0,0.00016163,2]
[330847502,1719864569218,-500.0,0.00016163,2]
[330847503,1719864569238,-532.03502599,0.00017493,2]
[330847508,1719864632111,-446.11884901,0.00017493,2]
[330847509,1719864632121,-205.7897499,0.00017559,2]
[330847510,1719864632130,-485.53,0.00017659,2]
[330847511,1719864632140,-600.0,0.00017807,2]
[330847512,1719864632149,-499.99,0.00017808,2]
[330847513,1719864632160,-625.64470959,0.00018835,2]
[330847514,1719864632169,-155.0,0.00018899,2]
[330847515,1719864632178,-248.30408677,0.00018899,2]
[330847516,1719864632187,-155.0,0.00018899,2]
[330847517,1719864632197,-155.0,0.00018919,2]
[330847518,1719864632207,-1069.13006944,0.00019069,2]
[330847519,1719864632215,-756.26299175,0.000192,7]
[330847520,1719864632235,-243.73700825,0.000192,7]
[330847521,1719864632245,-155.0,0.00019299,2]
[330847522,1719864632254,-155.0,0.0001935,2]
[330847523,1719864632264,-264.40040348,0.00019352,2]
[330847524,1719864632273,-283.57813973,0.00019354,2]
[330847525,1719864632281,-378.31889351,0.00019354,2]
[330847526,1719864632291,-919.96555503,0.00019366,2]
[330847527,1719864632306,-80.03444497,0.00019366,2]
[330847528,1719864632315,-2869.0,0.000194,3]
[330847529,1719864632325,-865.0,0.000194,3]
[330847530,1719864632336,-250.0,0.00019445,2]
[330847531,1719864632345,-164.88,0.00019445,2]
[330847532,1719864632354,-450.24027991,0.00019451,2]
[330847533,1719864632363,-308.19482801,0.00019451,2]
[330847534,1719864632373,-1000.0,0.000195,3]
[330847535,1719864632382,-1000.0,0.000195,3]
[330847536,1719864632392,-438.1115069,0.00019565,2]
[330847537,1719864632401,-250.0,0.0001957,2]
[330847538,1719864632410,-2014.92,0.00019578,2]
[330847539,1719864632420,-10.38492095,0.00019597,2]
[330847540,1719864632431,-1767.34507905,0.00019597,2]
[330847541,1719864632440,-157.89109056,0.00019725,2]
[330847542,1719864632450,-170.86,0.00019752,2]
[330847544,1719864632460,-250.0,0.00019761,2]
[330847546,1719864632469,-897.88,0.00019765,30]
[330847548,1719864632479,-475.03236133,0.00019863,2]
[330847550,1719864632488,-528.46230477,0.00019863,2]
[330847551,1719864632497,-155.55852457,0.00019899,2]
[330847552,1719864632507,-485.53,0.00019922,2]
[330847553,1719864632516,-1500.25333624,0.00019964,2]
[330847554,1719864632525,-322.71533688,0.00019964,2]
[330847555,1719864632534,-155.57295146,0.0001999,2]
[330847556,1719864632543,-993.95823064,0.0002,2]
[330847564,1719864638123,-206.17373388,0.00018899,2]
[330847566,1719864638134,-155.0,0.00019354,2]
[330847568,1719864638143,-650.69302056,0.00019565,2]
[330847570,1719864638153,-1506.04176936,0.0002,2]
[330847572,1719864638163,-1000.0,0.0002,3]
[330847573,1719864638173,-1000.0,0.000203,4]
[330847574,1719864638183,-1027.37490661,0.00020398,2]
[330847575,1719864638193,-1000.0,0.000205,4]
[330847576,1719864638203,-177.154799,0.00020629,2]
[330847577,1719864638213,-3580.786807,0.00020629,2]
[330847578,1719864638223,-3420.769554,0.00020629,2]
[330847579,1719864638232,-1206.9525,0.000207,2]
[330847580,1719864638242,-3580.786807,0.00020887,2]
[330847581,1719864638252,-3420.769554,0.00020887,2]
[330847582,1719864638262,-1000.0,0.000209,3]
[330847583,1719864638271,-500.0,0.000209,7]
[330847584,1719864638281,-225.19167095,0.00021,2]
[330847585,1719864638291,-431.0,0.00021,10]
[330847586,1719864638301,-1000.0,0.00021,5]
[330847587,1719864638310,-1003.0,0.00021,5]
[330847588,1719864638320,-1100.0,0.00021,7]
[330847589,1719864638330,-1700.0,0.000211,7]
[330847590,1719864638339,-3580.786807,0.00021145,2]
[330847591,1719864638349,-3420.769554,0.00021145,2]
[330847592,1719864638358,-2300.0,0.000212,7]
[330847593,1719864638367,-363.95360909,0.00021203,5]
[330847594,1719864638377,-5976.64620545,0.00021203,2]
[330847595,1719864638387,-600.0,0.00021248,2]
[330847596,1719864638397,-2900.0,0.000213,7]
[330847597,1719864638407,-305.67,0.00021342,2]
[330847598,1719864638417,-500.0,0.00021354,2]
[330847599,1719864638426,-152.0,0.00021371,3]
[330847600,1719864638436,-213.532,0.00021376,2]
[330847601,1719864638446,-500.0,0.000214,7]
[330847602,1719864638456,-3580.786807,0.00021403,2]
[330847603,1719864638467,-3420.769554,0.00021403,2]
[330847604,1719864638478,-1132.59017755,0.00021478,2]
[330847605,1719864638488,-1099.16774071,0.00021478,2]
[330847606,1719864638498,-995.71583785,0.00021478,2]
[330847607,1719864638512,-500.0,0.000215,7]
[330847608,1719864638522,-150.90846156,0.00021504,2]
[330847609,1719864638532,-151.0,0.00021547,2]
[330847610,1719864638542,-500.0,0.000216,7]
[330847611,1719864638552,-312.2489,0.000216,2]
[330847612,1719864638563,-220.15,0.00021616,2]
[330847613,1719864638573,-2500.0,0.00021617,2]
[330847614,1719864638584,-467.68092816,0.00021617,2]
[330847615,1719864638595,-1534.37289422,0.00021617,2]
[330847616,1719864638605,-419.53,0.00021628,2]
[330847617,1719864638615,-411.08,0.00021644,2]
[330847618,1719864638626,-467.68092813,0.0002166,2]
[330847619,1719864638635,-1534.37289418,0.0002166,2]
[330847620,1719864638647,-3580.786807,0.0002166,2]
[330847621,1719864638657,-3420.769554,0.0002166,2]
[330847622,1719864638667,-177.154799,0.0002166,2]
[330847623,1719864638677,-150.0,0.00021672,2]
[330847624,1719864638688,-150.0,0.00021675,2]
[330847625,1719864638698,-150.0,0.00021676,2]
[330847626,1719864638708,-500.0,0.000217,7]
[330847627,1719864638723,-17759.11778684,0.000217,2]
[330847628,1719864638733,-467.68092813,0.00021703,2]
[330847629,1719864638743,-1534.37289418,0.00021703,2]
[330847630,1719864638753,-500.0,0.00021711,2]
[330847631,1719864638763,-1000.0,0.00021717,2]
[330847632,1719864638773,-14051.7307,0.00021717,2]
[330847633,1719864638783,-3010.1808,0.00021717,2]
[330847634,1719864638792,-80980.2567,0.00021717,2]
[330847635,1719864638802,-1838.7809,0.00021717,2]
[330847636,1719864638812,-153.31501807,0.00021717,2]
[330847637,1719864638821,-500.0,0.0002172,2]
[330847638,1719864638831,-200.0,0.0002172,2]
[330847639,1719864638841,-500.0,0.00021736,2]
[330847640,1719864638850,-153.31501805,0.00021742,2]
[330847641,1719864638860,-467.68092813,0.00021746,2]
[330847642,1719864638870,-1534.37289418,0.00021746,2]
[330847643,1719864638879,-153.31501805,0.00021767,2]
[330847644,1719864638894,-1000.0,0.00021787,2]
[330847645,1719864638904,-169.88866674,0.00021787,2]
[330847646,1719864638913,-467.68092813,0.00021789,2]
[330847647,1719864638923,-1534.37289418,0.00021789,2]
[330847648,1719864638934,-153.31501805,0.00021792,2]
[330847649,1719864638944,-1400.0,0.000218,7]
[330847650,1719864638953,-500.0,0.00021807,2]
[330847651,1719864638964,-30037.0164,0.00021807,2]
[330847652,1719864638978,-1000.0,0.00021807,2]
[330847653,1719864638987,-501.1919,0.00021807,2]
[330847654,1719864638997,-6705.78708954,0.00021807,2]
[330847655,1719864639006,-7500.0,0.00021817,2]
[330847656,1719864639016,-54777.78043651,0.00021817,2]
[330847657,1719864639965,-17876.81256349,0.00021817,2]
[330847658,1719864639978,-29953.0879,0.00021817,2]
[330847659,1719864640400,-6498.00706969,0.00021817,2]
[330847660,1719864640410,-173.08777402,0.00021817,2]
[330847661,1719864640419,-164.50826758,0.00021817,2]
[330847662,1719864640428,-176.47864197,0.00021817,2]
[330847663,1719864640438,-153.31501805,0.00021817,2]
[330847664,1719864640447,-411.52405493,0.00021817,2]
[330847665,1719864640456,-427.87987577,0.00021817,2]
[330847666,1719864640467,-827.0,0.00021825,2]
[330847667,1719864640476,-467.68092813,0.00021833,2]
[330847668,1719864640486,-1534.37289418,0.00021833,2]
[330847669,1719864640496,-150.90846156,0.00021839,2]
[330847670,1719864640506,-500.0,0.00021847,2]
[330847671,1719864640516,-500.0,0.00021856,2]
[330847672,1719864640526,-173.08777401,0.00021859,2]
[330847673,1719864640536,-957.96958422,0.0002186,2]
[330847674,1719864640545,-500.0,0.00021864,2]
[330847675,1719864640554,-6498.00706969,0.0002187,2]
[330847676,1719864640563,-500.0,0.00021873,2]
[330847677,1719864640572,-467.68092813,0.00021876,2]
[330847678,1719864640584,-1534.37289418,0.00021876,2]
[330847679,1719864640594,-500.0,0.00021882,2]
[330847680,1719864640603,-372.0,0.00021887,30]
[330847681,1719864640613,-1628.0,0.00021887,30]
[330847682,1719864640623,-372.0,0.00021887,30]
[330847683,1719864640632,-957.96958422,0.0002189,2]
[330847684,1719864640642,-500.0,0.00021891,2]
[330847685,1719864640653,-2873.90875266,0.00021892,2]
[330847686,1719864640662,-957.96958422,0.00021894,2]
[330847687,1719864640672,-5747.81750532,0.00021897,2]
[330847688,1719864640682,-372.0,0.00021897,30]
[330847689,1719864640691,-150.5,0.00021897,30]
[330847690,1719864640701,-1628.0,0.00021897,30]
[330847691,1719864640710,-372.0,0.00021897,30]
[330847692,1719864640721,-500.0,0.000219,2]
[330847693,1719864640731,-173.08777401,0.000219,2]
[330847694,1719864640742,-999.3,0.000219,2]
[330847695,1719864640752,-1071.0,0.000219,9]
[330847696,1719864640763,-491.0,0.000219,4]
[330847697,1719864640772,-981.0,0.000219,4]
[330847698,1719864640782,-1000.0,0.000219,2]
[330847699,1719864640791,-250.0,0.000219,2]
[330847700,1719864640801,-250.0,0.000219,2]
[330847701,1719864640813,-225.0,0.000219,2]
[330847702,1719864640824,-511.0,0.000219,2]
[330847703,1719864640833,-356.0,0.000219,2]
[330847704,1719864640842,-10664.2060298,0.00021902,2]
[330847705,1719864640854,-8175.5955545,0.00021902,2]
[330847706,1719864640863,-5686.9850791,0.00021902,2]
[330847707,1719864640873,-3198.3746038,0.00021902,2]
[330847708,1719864640884,-709.7641284,0.00021902,2]
[330847709,1719864640898,-9558.6024716,0.00021902,2]
[330847710,1719864640907,-7327.9968199,0.00021902,2]
[330847711,1719864640916,-5097.3911683,0.00021902,2]
[330847712,1719864640926,-2866.7855166,0.00021902,2]
[330847713,1719864640941,-636.179865,0.00021902,2]
[330847714,1719864640950,-5810.8173625,0.00021902,2]
[330847715,1719864640960,-4455.1916571,0.00021902,2]
[330847716,1719864640971,-3099.5659518,0.00021902,2]
[330847717,1719864640981,-1743.9402464,0.00021902,2]
[330847718,1719864640990,-388.3145411,0.00021902,2]
[330847719,1719864641000,-425.7825441,0.00021902,2]
[330847720,1719864641009,-425.7825441,0.00021902,2]
[330847721,1719864641018,-425.7825441,0.00021902,2]
[330847722,1719864641027,-425.7825441,0.00021902,2]
[330847723,1719864641036,-425.7825441,0.00021902,2]
[330847724,1719864641046,-13152.8165052,0.00021904,2]
[330847725,1719864641055,-11789.2081233,0.00021904,2]
[330847726,1719864641065,-7166.4430679,0.00021904,2]
[330847727,1719864641074,-425.7825441,0.00021904,2]
[330847728,1719864641083,-348.6766562,0.00021904,2]
[330847729,1719864641092,-150.5,0.00021907,30]
[330847730,1719864641102,-372.0,0.00021907,30]
[330847731,1719864641111,-193.00456218,0.00021907,2]
[330847732,1719864641120,-150.5,0.00021907,30]
[330847733,1719864641130,-1628.0,0.00021907,30]
[330847734,1719864641139,-372.0,0.00021907,30]
[330847735,1719864641149,-500.0,0.00021908,2]
[330847736,1719864641158,-211.0,0.0002191,2]
[330847737,1719864641167,-209.73197584,0.00021911,2]
[330847738,1719864641177,-4014.96814764,0.00021911,2]
[330847739,1719864641186,-411.52405493,0.00021911,2]
[330847740,1719864641195,-1000.0,0.00021912,2]
[330847741,1719864641205,-1000.0,0.00021912,2]
[330847742,1719864641215,-586.82554,0.00021912,2]
[330847743,1719864641223,-594.0,0.00021916,2]
[330847744,1719864641233,-300.0,0.00021916,2]
[330847745,1719864641242,-155.0,0.00021916,2]
[330847746,1719864641253,-448.06132112,0.00021916,2]
[330847747,1719864641263,-550.47298576,0.00021916,2]
[330847748,1719864641272,-581.33393112,0.00021916,2]
[330847749,1719864641281,-4279.14032286,0.00021916,15]
[330847750,1719864641290,-200.0,0.00021916,2]
[330847751,1719864641300,-150.0,0.00021916,2]
[330847752,1719864641309,-150.0,0.00021916,7]
[330847753,1719864641319,-150.0,0.00021916,7]
[330847754,1719864641328,-150.0,0.00021916,7]
[330847755,1719864641337,-150.0,0.00021916,7]
[330847756,1719864641346,-763178.48963466,0.00021917,7]
[330847757,1719864641364,-239475.90573775,0.00021917,7]
[330847758,1719864641747,-1049.56241574,0.00021817,2]
[330847759,1719864641777,-2167.6260919,0.00021817,2]
[330847760,1719864641786,-412378.44031464,0.00021917,7]
[330847761,1719864641795,-415.13860236,0.00021917,5]
[330847762,1719864641805,-500.0,0.00021917,4]
[330847763,1719864641815,-500.0,0.00021917,4]
[330847764,1719864641825,-500.0,0.00021917,4]
[330847765,1719864641835,-500.0,0.00021917,4]
[330847766,1719864641844,-500.0,0.00021917,4]
[330847767,1719864641853,-151.0,0.00021917,2]
[330847768,1719864641863,-151.0,0.00021917,2]
[330847769,1719864641872,-157.170825,0.00021917,2]
[330847770,1719864641882,-151.0,0.00021917,2]
[330847771,1719864641896,-151.0,0.00021917,2]
[330847772,1719864641905,-155.343404,0.00021917,2]
[330847773,1719864641915,-261527.0,0.00021917,2]
[330847774,1719864641924,-500.0,0.00021917,4]
[330847775,1719864641935,-151.0,0.00021917,2]
[330847776,1719864641945,-151.0,0.00021917,2]
[330847777,1719864641954,-151.0,0.00021917,2]
[330847778,1719864641963,-151.0,0.00021917,2]
[330847779,1719864641976,-169.23724934,0.00021917,4]
[330847780,1719864641985,-444.1768613,0.00021917,4]
[330847781,1719864641994,-500.0,0.00021917,4]
[330847782,1719864642003,-500.0,0.00021917,4]
[330847783,1719864642013,-500.0,0.00021917,4]
[330847784,1719864642022,-500.0,0.00021917,4]
[330847785,1719864642032,-500.0,0.00021917,4]
[330847786,1719864642041,-500.0,0.00021917,4]
[330847787,1719864642050,-500.0,0.00021917,4]
[330847788,1719864642061,-500.0,0.00021917,4]
[330847789,1719864642071,-500.0,0.00021917,4]
[330847790,1719864642080,-545.72,0.00021917,4]
[330847791,1719864642090,-500.0,0.00021917,4]
[330847792,1719864642100,-500.0,0.00021917,4]
[330847793,1719864642109,-500.0,0.00021917,4]
[330847794,1719864642118,-500.0,0.00021917,4]
[330847795,1719864642127,-470.11492513,0.00021917,4]
[330847796,1719864642137,-500.0,0.00021917,4]
[330847797,1719864642146,-500.0,0.00021917,4]
[330847798,1719864642156,-500.0,0.00021917,4]
[330847799,1719864642165,-500.0,0.00021917,4]
[330847800,1719864642174,-602.68,0.00021917,4]
[330847801,1719864642183,-500.0,0.00021917,4]
[330847802,1719864642192,-500.0,0.00021917,4]
[330847803,1719864642202,-500.0,0.00021917,4]
[330847804,1719864642211,-500.0,0.00021917,4]
[330847805,1719864642221,-500.0,0.00021917,4]
[330847806,1719864642231,-500.0,0.00021917,4]
[330847807,1719864642240,-500.0,0.00021917,4]
[330847808,1719864642249,-500.0,0.00021917,4]
[330847809,1719864642258,-500.0,0.00021917,4]
[330847810,1719864642268,-500.0,0.00021917,4]
[330847811,1719864642277,-500.0,0.00021917,4]
[330847812,1719864642286,-500.0,0.00021917,4]
[330847813,1719864642295,-500.0,0.00021917,4]
[330847814,1719864642305,-500.0,0.00021917,4]
[330847815,1719864642314,-500.0,0.00021917,4]
[330847816,1719864642324,-500.0,0.00021917,4]
[330847817,1719864642335,-500.0,0.00021917,4]
[330847818,1719864642344,-500.0,0.00021917,4]
[330847819,1719864642353,-500.0,0.00021917,4]
[330847820,1719864642363,-500.0,0.00021917,4]
[330847821,1719864642373,-599.16,0.00021917,4]
[330847822,1719864642382,-500.0,0.00021917,4]
[330847823,1719864642391,-500.0,0.00021917,4]
[330847824,1719864642400,-500.0,0.00021917,4]
[330847825,1719864642410,-500.0,0.00021917,4]
[330847826,1719864642420,-500.0,0.00021917,4]
[330847827,1719864642429,-500.0,0.00021917,4]
[330847828,1719864642439,-500.0,0.00021917,4]
[330847829,1719864642448,-500.0,0.00021917,4]
[330847830,1719864642458,-500.0,0.00021917,4]
[330847831,1719864642467,-500.0,0.00021917,4]
[330847832,1719864642477,-500.0,0.00021917,4]
[330847833,1719864642486,-500.0,0.00021917,4]
[330847834,1719864642495,-500.0,0.00021917,4]
[330847835,1719864642505,-500.0,0.00021917,4]
[330847836,1719864642514,-500.0,0.00021917,4]
[330847837,1719864642523,-500.0,0.00021917,4]
[330847838,1719864642532,-500.0,0.00021917,4]
[330847839,1719864642541,-500.0,0.00021917,4]
[330847840,1719864642550,-415.56,0.00021917,4]
[330847841,1719864642560,-500.0,0.00021917,4]
[330847842,1719864642569,-500.0,0.00021917,4]
[330847843,1719864642578,-500.0,0.00021917,4]
[330847844,1719864642587,-500.0,0.00021917,4]
[330847845,1719864642597,-210.28,0.00021917,4]
[330847846,1719864642606,-500.0,0.00021917,4]
[330847847,1719864642616,-500.0,0.00021917,4]
[330847848,1719864642625,-500.0,0.00021917,4]
[330847849,1719864642634,-500.0,0.00021917,4]
[330847850,1719864642646,-500.0,0.00021917,4]
[330847851,1719864642656,-500.0,0.00021917,4]
[330847852,1719864642666,-500.0,0.00021917,4]
[330847853,1719864642676,-500.0,0.00021917,4]
[330847854,1719864642685,-500.0,0.00021917,4]
[330847855,1719864642695,-500.0,0.00021917,4]
[330847856,1719864642704,-500.0,0.00021917,4]
[330847857,1719864642714,-500.0,0.00021917,4]
[330847858,1719864642724,-500.0,0.00021917,4]
[330847859,1719864642809,-500.0,0.00021917,4]
[330847860,1719864642819,-500.0,0.00021917,4]
[330847861,1719864642829,-500.0,0.00021917,4]
[330847862,1719864642838,-500.0,0.00021917,4]
[330847863,1719864642847,-500.0,0.00021917,4]
[330847864,1719864642857,-500.0,0.00021917,4]
[330847865,1719864642866,-500.0,0.00021917,4]